bitfinex/quotes_BTCUSD_20250410
["timestamp","ask_amount","ask_price","bid_price","bid_amount"]
[1744275766515,1.14324774,81412.0,81411.0,0.00412038]
[1744275766713,1.19294774,81412.0,81411.0,0.00412038]
[1744275767084,1.42967064,81412.0,81411.0,0.00412038]
[1744275769770,1.41828235,81412.0,81411.0,0.00412038]
[1744275770288,1.36858235,81412.0,81411.0,0.00412038]
[1744275771309,1.44227235,81412.0,81411.0,0.00412038]
[1744275771517,1.36858235,81412.0,81411.0,0.00412038]
[1744275772912,1.37997557,81412.0,81411.0,0.00412038]
[1744275775436,1.42917557,81412.0,81411.0,0.00412038]
[1744275775627,0.598,81395.0,81394.0,0.0001686]
[1744275775781,0.95527672,81395.0,81394.0,0.00059505]
[1744275776215,0.96666994,81395.0,81394.0,0.00059505]
[1744275776416,1.36666994,81395.0,81394.0,0.00059505]
[1744275776817,1.37521182,81395.0,81394.0,0.00059505]
[1744275777017,1.39799019,81395.0,81394.0,0.00059505]
[1744275777460,1.27743637,81395.0,81394.0,0.00059505]
[1744275778829,1.254658,81395.0,81394.0,0.00059505]
[1744275779691,1.24611612,81395.0,81394.0,0.00059505]
[1744275779880,1.2552515,81395.0,81394.0,0.00059505]
[1744275780084,0.24811612,81395.0,81394.0,0.04839505]
[1744275780235,0.01139322,81395.0,81394.0,0.09659505]
[1744275780419,0.245715,81395.0,81394.0,0.09659505]
[1744275780631,0.258,81395.0,81394.0,0.09659505]
[1744275780992,0.245703,81399.0,81394.0,0.09659505]
[1744275780993,0.245682,81406.0,81397.0,0.012285]
[1744275781128,0.012283,81407.0,81398.0,0.012285]
[1744275781333,0.012283,81410.0,81401.0,0.0475]
[1744275781334,0.245688,81404.0,81401.0,0.0475]
[1744275781532,0.245688,81404.0,81402.0,0.14416]
[1744275781780,0.257968,81406.0,81402.0,0.14416]
[1744275781984,0.012284,81406.0,81402.0,0.389853]
[1744275782190,0.2367229,81411.0,81408.0,0.012283]
[1744275782386,0.257946,81413.0,81409.0,0.0948]
[1744275782594,0.24567,81410.0,81409.0,0.0948]
[1744275782967,0.257953,81410.0,81409.0,0.0948]
[1744275783659,0.012282,81419.0,81413.0,0.012283]
[1744275783861,0.245652,81416.0,81409.0,0.0948]
[1744275784102,0.01139677,81417.0,81415.0,0.257934]
[1744275784306,0.01139677,81417.0,81415.0,0.12055382]
[1744275784619,0.012282,81417.0,81415.0,0.13509467]
[1744275784813,0.0128336,81421.0,81417.0,0.292648]
[1744275785015,0.257927,81418.0,81417.0,0.047]
[1744275785651,0.245645,81418.0,81417.0,0.047]
[1744275785817,0.245643,81419.0,81417.0,0.047]
[1744275786224,0.257925,81419.0,81417.0,0.047]
[1744275786418,0.245636,81422.0,81417.0,0.047]
[1744275786620,0.257917,81422.0,81418.0,0.245645]
[1744275786819,0.245643,81419.0,81417.0,0.047]
[1744275787156,0.01276744,81421.0,81417.0,0.059282]
[1744275787499,0.245627,81424.0,81419.0,0.245642]
[1744275787954,0.245632,81423.0,81419.0,0.245642]
[1744275788094,0.257908,81425.0,81421.0,0.245635]
[1744275788305,0.012281,81424.0,81419.0,0.245642]
[1744275788505,0.01228,81432.0,81424.0,0.012281]
[1744275788707,0.012279,81434.0,81429.0,0.01228]
[1744275788888,0.012279,81434.0,81423.0,0.245628]
[1744275788889,0.01228,81429.0,81423.0,0.245628]
[1744275789226,0.245619,81427.0,81423.0,0.36618382]
[1744275789429,0.012281,81426.0,81423.0,0.12055382]
[1744275789636,0.01228,81428.0,81423.0,0.12055382]
[1744275789836,0.01228,81428.0,81423.0,0.36618282]
[1744275790010,0.257898,81428.0,81423.0,0.12055382]
[1744275790212,0.245619,81427.0,81423.0,0.12055382]
[1744275790414,0.245594,81435.0,81431.0,0.245603]
[1744275790578,0.245594,81435.0,81432.0,0.245603]
[1744275790779,0.245598,81434.0,81432.0,0.0488]
[1744275791023,0.3654042,81436.0,81433.0,0.2456]
[1744275791228,0.00012757,81436.0,81435.0,0.257873]
[1744275791421,0.00012757,81436.0,81435.0,0.39296767]
[1744275792436,0.00012757,81436.0,81435.0,0.13509467]
[1744275792640,0.25788,81433.0,81432.0,0.0488]
[1744275792839,0.012279,81435.0,81432.0,0.0488]
[1744275792840,0.257876,81434.0,81432.0,0.0488]
[1744275793053,0.00012757,81436.0,81433.0,0.2456]
[1744275793244,0.00012757,81436.0,81435.0,0.245594]
[1744275793564,0.00012757,81436.0,81435.0,0.257873]
[1744275793943,0.00012757,81436.0,81433.0,0.01228]
[1744275793944,0.245597,81434.0,81432.0,0.0488]
[1744275794370,0.2456,81433.0,81432.0,0.0488]
[1744275795071,0.257883,81432.0,81431.0,0.14412]
[1744275795371,0.24572157,81436.0,81432.0,0.245602]
[1744275795668,0.257873,81435.0,81431.0,0.389725]
[1744275796205,0.245601,81433.0,81431.0,0.14412]
[1744275796405,0.245603,81432.0,81431.0,0.14412]
[1744275796588,0.2456,81433.0,81431.0,0.14412]
[1744275796884,0.245603,81432.0,81431.0,0.14412]
[1744275797291,0.2456,81433.0,81431.0,0.14412]
[1744275797500,0.01240657,81436.0,81431.0,0.389726]
[1744275797792,0.00012757,81436.0,81432.0,0.245601]
[1744275797954,0.01240657,81436.0,81431.0,0.389725]
[1744275798158,0.245601,81433.0,81431.0,0.14412]
[1744275798561,0.257883,81432.0,81431.0,0.14412]
[1744275798756,0.245618,81427.0,81426.0,0.0494]
[1744275798956,0.245623,81426.0,81422.0,0.245631]
[1744275799157,0.245623,81426.0,81421.0,0.06414085]
[1744275799158,0.012282,81419.0,81418.0,0.0488]
[1744275799366,0.245642,81419.0,81418.0,0.0488]
[1744275799567,0.245647,81418.0,81416.0,0.0496]
[1744275800300,0.012283,81413.0,81410.0,0.0483]
[1744275800473,0.012283,81413.0,81409.0,0.0496]
[1744275800474,0.257944,81413.0,81409.0,0.0496]
[1744275800993,0.245661,81413.0,81409.0,0.0496]
[1744275801211,0.257944,81413.0,81409.0,0.0496]
[1744275801344,0.012283,81410.0,81409.0,0.0496]
[1744275801541,0.257953,81410.0,81409.0,0.0496]
[1744275804071,0.257953,81410.0,81409.0,0.19444]
[1744275804270,0.257953,81410.0,81409.0,0.14484]
[1744275805626,0.257972,81404.0,81403.0,1.26432]
[1744275810394,0.257972,81404.0,81403.0,1.4092]
[1744275812202,0.257972,81404.0,81403.0,1.26432]
[1744275812444,0.257972,81404.0,81403.0,1.4092]
[1744275814037,0.257972,81404.0,81403.0,0.14488]
[1744275816003,0.245715,81395.0,81394.0,0.0001686]
[1744275816260,0.258,81395.0,81394.0,0.14547505]
[1744275822724,0.245709,81398.0,81394.0,0.14547505]
[1744275822725,0.245697,81401.0,81394.0,0.14547505]
[1744275822971,0.245706,81399.0,81395.0,0.0463]
[1744275823176,0.012285,81398.0,81395.0,0.0463]
[1744275823378,0.012285,81397.0,81395.0,0.0463]
[1744275823727,0.257997,81396.0,81395.0,0.0463]
[1744275824042,0.258,81395.0,81394.0,0.00059505]
[1744275824239,0.258,81395.0,81394.0,0.14495505]
[1744275825166,0.258,81395.0,81394.0,0.00059505]
[1744275825511,0.258,81395.0,81394.0,0.14495505]
[1744275832022,0.258,81395.0,81394.0,0.00059505]
[1744275832182,0.258,81395.0,81394.0,0.14495505]
[1744275838698,0.257997,81396.0,81394.0,0.14495505]
[1744275838898,0.257988,81400.0,81395.0,0.245712]
[1744275839197,0.012284,81403.0,81395.0,0.245712]
[1744275839198,0.245696,81402.0,81399.0,0.245702]
[1744275839412,0.245697,81401.0,81398.0,0.245705]
[1744275839576,0.245702,81400.0,81398.0,0.13509467]
[1744275839778,0.245703,81399.0,81398.0,0.13509467]
[1744275840182,0.257988,81399.0,81398.0,0.13509467]
[1744275840912,0.257988,81399.0,81394.0,0.14495505]
[1744275840913,0.258,81395.0,81394.0,0.14495505]
[1744275841891,0.245713,81396.0,81394.0,0.14495505]
[1744275842095,0.245715,81395.0,81394.0,0.14495505]
[1744275842303,0.258,81395.0,81394.0,0.14495505]
[1744275842942,0.245715,81395.0,81394.0,0.14495505]
[1744275843107,0.258,81395.0,81394.0,0.14495505]
[1744275844642,0.257993,81398.0,81395.0,0.245712]
[1744275844840,0.245715,81395.0,81394.0,0.14495505]
[1744275845055,0.257994,81398.0,81395.0,0.245713]
[1744275845362,0.245711,81397.0,81394.0,0.39067205]
[1744275845693,0.245711,81397.0,81394.0,0.14495505]
[1744275845869,0.245711,81397.0,81394.0,0.39067105]
[1744275846770,0.24571,81397.0,81395.0,0.245714]
[1744275846927,0.24571,81397.0,81394.0,0.14495505]
[1744275847132,0.257998,81396.0,81394.0,0.14495505]
[1744275847332,0.258,81395.0,81394.0,0.14495505]
[1744275847538,0.245713,81396.0,81394.0,0.14495505]
[1744275847792,0.24571,81397.0,81394.0,0.14495505]
[1744275847997,0.257991,81398.0,81394.0,0.39067105]
[1744275848153,0.257986,81400.0,81395.0,0.13509467]
[1744275848367,0.245705,81399.0,81396.0,0.245712]
[1744275848945,0.245705,81399.0,81397.0,0.245709]
[1744275849166,0.245705,81399.0,81396.0,0.245712]
[1744275849344,0.245706,81398.0,81395.0,0.39308867]
[1744275849750,0.24571,81397.0,81395.0,0.38080367]
[1744275849949,0.245706,81398.0,81395.0,0.38080367]
[1744275850155,0.257993,81399.0,81396.0,0.245712]
[1744275850358,0.245707,81398.0,81395.0,0.38080367]
[1744275850554,0.245712,81396.0,81395.0,0.13509467]
[1744275850984,0.24571,81397.0,81395.0,0.38080767]
[1744275851171,0.245706,81398.0,81395.0,0.38080767]
[1744275851408,0.012285,81396.0,81395.0,0.13509467]
[1744275851557,0.245711,81397.0,81395.0,0.13509467]
[1744275851758,0.245711,81398.0,81395.0,0.38080867]
[1744275851975,0.245711,81398.0,81396.0,0.24571]
[1744275851976,0.245706,81398.0,81396.0,0.24571]
[1744275852191,0.245706,81398.0,81396.0,0.245711]
[1744275852386,0.245706,81398.0,81395.0,0.38080867]
[1744275852709,0.24571,81397.0,81395.0,0.13509467]
[1744275853205,0.24571,81397.0,81396.0,0.14436]
[1744275853405,0.24571,81397.0,81395.0,0.13509467]
[1744275853569,0.245712,81396.0,81395.0,0.13509467]
[1744275853765,0.245709,81397.0,81395.0,0.27945467]
[1744275853973,0.245706,81398.0,81395.0,0.27945467]
[1744275854172,0.245709,81397.0,81395.0,0.52516767]
[1744275855150,0.245703,81399.0,81396.0,0.245712]
[1744275855321,0.245706,81398.0,81395.0,0.52516867]
[1744275856088,0.257997,81396.0,81395.0,0.27945467]
[1744275856247,0.245712,81396.0,81395.0,0.27945467]
[1744275856488,0.257985,81400.0,81396.0,0.24571]
[1744275856656,0.257985,81400.0,81395.0,0.27749467]
[1744275856657,0.245711,81397.0,81395.0,0.27749467]
[1744275856856,0.245711,81397.0,81395.0,0.52320667]
[1744275857629,0.245712,81396.0,81395.0,0.27749467]
[1744275858263,0.257992,81398.0,81395.0,0.52320967]
[1744275860018,0.245707,81398.0,81395.0,0.52320967]
[1744275860606,0.245707,81398.0,81396.0,0.245711]
[1744275861214,0.245709,81397.0,81395.0,0.52320967]
[1744275861353,0.245707,81398.0,81395.0,0.52320967]
[1744275861757,0.245707,81398.0,81396.0,0.24571]
[1744275862008,0.245707,81398.0,81395.0,0.52320967]
[1744275862321,0.012285,81399.0,81395.0,0.27749467]
[1744275862455,0.245706,81398.0,81395.0,0.27749467]
[1744275862663,0.245712,81396.0,81395.0,0.27749467]
[1744275865111,0.257997,81396.0,81395.0,0.27749467]
[1744275865595,0.245712,81396.0,81395.0,0.27749467]
[1744275866096,0.245711,81397.0,81395.0,0.52320967]
[1744275866398,0.245712,81396.0,81395.0,0.27749467]
[1744275866960,0.245711,81397.0,81395.0,0.27749467]
[1744275867957,0.245712,81396.0,81395.0,0.27749467]
[1744275868559,0.245711,81397.0,81395.0,0.27749467]
[1744275870204,0.245712,81396.0,81395.0,0.27749467]
[1744275870751,0.245711,81397.0,81395.0,0.27749467]
[1744275870950,0.257993,81399.0,81395.0,0.27749467]
[1744275871156,0.245709,81397.0,81395.0,0.52320667]
[1744275871384,0.25714013,81398.0,81395.0,0.27749467]
[1744275871670,0.24571,81397.0,81395.0,0.27749467]
[1744275872325,0.25714513,81398.0,81395.0,0.52320867]
[1744275872547,0.245709,81397.0,81395.0,0.27749467]
[1744275872755,0.245711,81398.0,81395.0,0.52320867]
[1744275872929,0.245683,81406.0,81402.0,0.245694]
[1744275873075,0.245691,81403.0,81400.0,0.257982]
[1744275873279,0.012284,81405.0,81402.0,0.245693]
[1744275873280,0.245685,81405.0,81402.0,0.245693]
[1744275873582,0.4,81443.0,81407.0,0.012283]
[1744275873583,0.2367229,81412.0,81407.0,0.012283]
[1744275873820,0.245669,81411.0,81407.0,0.245677]
[1744275874029,0.245669,81411.0,81408.0,0.13509467]
[1744275874231,0.01143654,81410.0,81409.0,0.1424]
[1744275874743,0.25710654,81410.0,81409.0,0.1424]
[1744275874897,0.01143654,81410.0,81409.0,0.1424]
[1744275875101,0.26938954,81410.0,81409.0,0.1424]
[1744275876445,0.01143654,81410.0,81409.0,0.52090982]
[1744275876746,0.01143654,81410.0,81409.0,0.26295382]
[1744275876747,0.25710654,81410.0,81409.0,0.26295382]
[1744275876957,0.26938954,81410.0,81409.0,0.1424]
[1744275877126,0.29224704,81410.0,81409.0,0.1424]
[1744275877454,0.012284,81401.0,81397.0,0.01454085]
[1744275877596,0.245705,81399.0,81398.0,0.26295382]
[1744275877795,0.257985,81400.0,81398.0,0.26295382]
[1744275878932,0.245694,81402.0,81398.0,0.26295382]
[1744275879140,0.245697,81401.0,81398.0,0.26295382]
[1744275880063,0.245703,81399.0,81398.0,0.27749467]
[1744275880309,0.257988,81399.0,81398.0,0.26295382]
[1744275880681,0.245715,81395.0,81394.0,0.00059505]
[1744275880887,0.258,81395.0,81394.0,0.00059505]
[1744275883621,0.28084949,81395.0,81394.0,0.00059505]
[1744275883988,0.29227443,81395.0,81394.0,0.00059505]
[1744275885591,0.29227443,81395.0,81394.0,0.14171505]
[1744275889202,0.258,81395.0,81394.0,0.14171505]
[1744275889698,0.245706,81398.0,81395.0,0.245715]
[1744275889900,0.245715,81395.0,81394.0,0.14171505]
[1744275890099,0.258,81395.0,81394.0,0.14171505]
[1744275891351,0.245712,81396.0,81394.0,0.14171505]
[1744275891979,0.245715,81395.0,81394.0,0.14171505]
[1744275892396,0.258,81395.0,81394.0,0.14171505]
[1744275892975,0.258,81395.0,81394.0,0.00059505]
[1744275893121,0.258,81395.0,81394.0,0.14175505]
[1744275893659,0.245715,81395.0,81394.0,0.14175505]
[1744275893865,0.258,81395.0,81394.0,0.14175505]
[1744275896144,0.245706,81398.0,81395.0,0.245713]
[1744275896310,0.257987,81401.0,81394.0,0.18955505]
[1744275896512,0.0453,81410.0,81399.0,0.257988]
[1744275896513,0.02283033,81400.0,81399.0,0.257988]
[1744275896901,0.02283033,81407.0,81406.0,0.245682]
[1744275897217,0.012283,81411.0,81406.0,0.14116]
[1744275897419,0.01308022,81413.0,81407.0,0.37851582]
[1744275897624,0.245666,81412.0,81407.0,0.37851582]
[1744275897823,0.01308022,81413.0,81407.0,0.37851582]
[1744275898038,0.01308022,81413.0,81407.0,0.44045667]
[1744275899495,0.245665,81412.0,81407.0,0.44045667]
[1744275901138,0.01308022,81413.0,81407.0,0.44045667]
[1744275901372,0.245664,81412.0,81407.0,0.44045667]
[1744275901571,0.245668,81411.0,81407.0,0.39305667]
[1744275902034,0.245668,81411.0,81409.0,0.245672]
[1744275902245,0.245668,81411.0,81409.0,0.36622582]
[1744275902660,0.245664,81412.0,81410.0,0.245669]
[1744275902861,0.34,81427.0,81420.0,0.012281]
[1744275903073,0.01261397,81425.0,81424.0,0.245627]
[1744275903398,0.01228,81431.0,81425.0,0.257903]
[1744275903521,0.01228,81429.0,81423.0,0.24563]
[1744275903734,0.245625,81425.0,81423.0,0.12055382]
[1744275903949,0.245622,81426.0,81423.0,0.36618382]
[1744275904328,0.245625,81425.0,81423.0,0.12055382]
[1744275904514,0.245622,81426.0,81423.0,0.12055382]
[1744275904821,0.01228,81427.0,81423.0,0.12055382]
[1744275905020,0.257901,81427.0,81423.0,0.12055382]
[1744275905222,0.245627,81425.0,81423.0,0.12055382]
[1744275905426,0.257908,81424.0,81423.0,0.12055382]
[1744275905812,0.257908,81424.0,81423.0,0.26167382]
[1744275909145,0.257908,81425.0,81423.0,0.26167382]
[1744275910032,0.24561,81430.0,81425.0,0.257905]
[1744275910260,0.245592,81436.0,81425.0,0.257905]
[1744275910261,0.012279,81437.0,81432.0,0.01228]
[1744275910463,0.245598,81434.0,81431.0,0.245606]
[1744275910779,0.245609,81431.0,81428.0,0.245613]
[1744275910922,0.245609,81431.0,81429.0,0.12055382]
[1744275911129,0.257889,81430.0,81429.0,0.12055382]
[1744275911799,0.257889,81430.0,81429.0,0.26167382]
[1744275914898,0.245607,81431.0,81429.0,0.26167382]
[1744275915105,0.00012757,81436.0,81435.0,0.245594]
[1744275915303,0.00012757,81436.0,81435.0,0.257873]
[1744275915630,0.00012757,81436.0,81435.0,0.39296767]
[1744275916521,0.00012757,81436.0,81435.0,0.44266767]
[1744275919314,0.00012757,81436.0,81435.0,0.58474767]
[1744275923159,0.25799757,81436.0,81435.0,0.26263382]
[1744275923361,0.30669757,81436.0,81435.0,0.14208]
[1744275924198,0.25799757,81436.0,81435.0,0.14208]
[1744275931486,0.27289453,81436.0,81435.0,0.14208]
[1744275933107,0.245605,81432.0,81430.0,0.01454085]
[1744275933302,0.27289453,81436.0,81432.0,0.245603]
[1744275933551,0.2456,81434.0,81431.0,0.50819982]
[1744275933944,0.24553167,81437.0,81435.0,0.26013485]
[1744275934125,0.24553167,81437.0,81436.0,0.12055382]
[1744275934946,0.25781067,81437.0,81436.0,0.12055382]
[1744275935565,0.01476621,81437.0,81436.0,0.38068567]
[1744275935740,0.01476621,81437.0,81436.0,0.39296467]
[1744275935950,0.0003372,81444.0,81441.0,0.245574]
[1744275936149,0.0003372,81444.0,81442.0,0.13509467]
[1744275936331,0.2726313,81443.0,81442.0,0.13509467]
[1744275936660,0.2726313,81443.0,81442.0,0.14204]
[1744275936872,0.2726333,81443.0,81442.0,0.14204]
[1744275937279,0.2603553,81443.0,81442.0,0.14204]
[1744275937489,0.2726333,81443.0,81442.0,0.14204]
[1744275940246,0.3672333,81443.0,81442.0,0.14204]
[1744275940654,0.2456,81434.0,81431.0,0.26014685]
[1744275941023,0.2456,81434.0,81433.0,0.01454085]
[1744275941223,0.2456,81433.0,81432.0,0.14204]
[1744275941428,0.2456,81433.0,81429.0,0.245612]
[1744275941634,0.257879,81434.0,81432.0,0.14204]
[1744275942155,0.25788,81433.0,81432.0,0.14204]
[1744275942754,0.257928,81418.0,81412.0,0.012283]
[1744275942961,0.245651,81416.0,81413.0,0.26259382]
[1744275943287,0.24564,81420.0,81417.0,0.01454085]
[1744275943490,0.24564,81420.0,81418.0,0.12055382]
[1744275944483,0.245642,81419.0,81418.0,0.13509467]
[1744275944688,0.257924,81419.0,81418.0,0.13509467]
[1744275944911,0.24564,81420.0,81418.0,0.13509467]
[1744275945108,0.245642,81419.0,81418.0,0.13509467]
[1744275946026,0.245631,81423.0,81418.0,0.13509467]
[1744275946205,0.012281,81422.0,81418.0,0.13509467]
[1744275946408,0.245638,81421.0,81418.0,0.13509467]
[1744275946839,0.245638,81421.0,81418.0,0.38073967]
[1744275947035,0.012281,81423.0,81419.0,0.245642]
[1744275947235,0.245639,81421.0,81419.0,0.12055382]
[1744275947558,0.245634,81422.0,81419.0,0.36619482]
[1744275947871,0.245633,81423.0,81420.0,0.245639]
[1744275948217,0.245633,81423.0,81421.0,0.245636]
[1744275948421,0.245633,81423.0,81420.0,0.245639]
[1744275949464,0.245624,81425.0,81421.0,0.38073067]
[1744275949630,0.245628,81424.0,81421.0,0.37847082]
[1744275950036,0.245631,81423.0,81422.0,0.01454085]
[1744275950374,0.245631,81423.0,81422.0,0.13509467]
[1744275950547,0.26034878,81423.0,81422.0,0.13509467]
[1744275951269,0.245638,81421.0,81418.0,0.01454085]
[1744275951579,0.257919,81421.0,81420.0,0.01454085]
[1744275951787,0.257919,81421.0,81420.0,0.13509467]
[1744275952192,0.245657,81414.0,81411.0,1.50999157]
[1744275952356,0.245648,81418.0,81413.0,0.26259382]
[1744275952561,0.245644,81419.0,81415.0,0.245654]
[1744275952760,0.257926,81419.0,81416.0,0.12055382]
[1744275952958,0.245646,81418.0,81416.0,0.12055382]
[1744275953472,0.245645,81418.0,81416.0,0.12055382]
[1744275954438,0.245641,81420.0,81416.0,0.12055382]
[1744275954599,0.245644,81419.0,81416.0,0.12055382]
[1744275954799,0.245646,81418.0,81416.0,0.36620482]
[1744275955009,0.245646,81418.0,81417.0,0.14308]
[1744275957827,0.012281,81420.0,81417.0,0.14308]
[1744275958685,0.245645,81418.0,81417.0,0.14308]
[1744275959341,0.01228,81429.0,81424.0,0.01454085]
[1744275959542,0.245617,81428.0,81425.0,0.36617582]
[1744275959947,0.257898,81429.0,81426.0,0.24562]
[1744275960109,0.245616,81428.0,81426.0,0.24562]
[1744275960312,0.245616,81428.0,81425.0,0.36617582]
[1744275960514,0.257902,81426.0,81425.0,0.12055382]
[1744275961254,0.257902,81426.0,81425.0,0.26363382]
[1744275962371,0.01228,81430.0,81425.0,0.26363382]
[1744275962372,0.257889,81430.0,81425.0,0.26363382]
[1744275962549,0.245618,81429.0,81425.0,0.50925282]
[1744275962750,0.245609,81430.0,81426.0,0.24562]
[1744275962954,0.012279,81435.0,81429.0,0.01228]
[1744275963158,0.012278,81440.0,81431.0,0.02682085]
[1744275963378,0.245574,81442.0,81438.0,0.012279]
[1744275963548,0.245577,81441.0,81439.0,0.245582]
[1744275965121,0.245591,81436.0,81435.0,0.01454085]
[1744275965334,0.25787,81436.0,81435.0,0.27817467]
[1744275965529,0.27231278,81436.0,81435.0,0.14308]
[1744275965831,0.37572749,81436.0,81435.0,0.14308]
[1744275966274,0.72428773,81436.0,81435.0,0.14308]
[1744275966707,0.74711687,81436.0,81435.0,0.14308]
[1744275966917,0.98383977,81436.0,81435.0,0.14308]
[1744275967116,1.38383977,81436.0,81435.0,0.14308]
[1744275967501,1.38383977,81436.0,81411.0,1.2642]
[1744275967502,0.012283,81413.0,81411.0,1.2642]
[1744275967714,0.257947,81412.0,81411.0,1.26432757]
[1744275967916,0.257947,81412.0,81411.0,1.40740757]
[1744275968073,0.31941534,81412.0,81411.0,1.40740757]
[1744275968279,0.34224448,81412.0,81411.0,1.40740757]
[1744275968471,0.29524448,81412.0,81411.0,1.40740757]
[1744275968694,0.30665919,81412.0,81411.0,1.40740757]
[1744275969018,0.28383005,81412.0,81411.0,1.40740757]
[1744275969218,0.28383005,81412.0,81411.0,1.26432757]
[1744275969420,0.27241534,81412.0,81411.0,1.40740757]
[1744275971501,0.01446834,81412.0,81411.0,1.80045224]
[1744275971702,0.4823519,81424.0,81420.0,0.245639]
[1744275971703,0.245634,81422.0,81420.0,0.245639]
[1744275971902,0.2367229,81424.0,81422.0,0.245632]
[1744275972226,0.2367229,81424.0,81423.0,0.13509467]
[1744275972425,0.245621,81426.0,81423.0,0.13509467]
[1744275973195,0.01228,81431.0,81423.0,0.13509467]
[1744275973196,0.012279,81438.0,81430.0,0.01454085]
[1744275973507,0.245598,81434.0,81433.0,0.01454085]
[1744275973708,0.24559,81437.0,81434.0,0.245596]
[1744275973909,0.0003372,81444.0,81440.0,0.012278]
[1744275974078,0.24557,81443.0,81439.0,0.012279]
[1744275974278,0.012278,81441.0,81439.0,0.12055382]
[1744275974513,0.2459072,81444.0,81440.0,0.245576]
[1744275974695,0.245574,81442.0,81439.0,0.13283282]
[1744275974912,0.245576,81441.0,81439.0,0.12055382]
[1744275975111,0.245579,81440.0,81439.0,0.12055382]
[1744275975515,0.257857,81440.0,81439.0,0.12055382]
[1744275975897,0.257867,81437.0,81436.0,0.14332]
[1744275977657,0.012281,81422.0,81410.0,0.012283]
[1744275977885,0.257923,81420.0,81413.0,0.012283]
[1744275978055,0.245654,81415.0,81414.0,0.12055382]
[1744275978228,0.245654,81415.0,81414.0,0.26383382]
[1744275978749,0.01449704,81415.0,81414.0,0.27837467]
[1744275979167,0.01449704,81415.0,81414.0,0.52403167]
[1744275979370,0.012282,81415.0,81414.0,0.27837467]
[1744275979584,0.27243304,81415.0,81414.0,0.27837467]
[1744275980573,0.01449704,81415.0,81414.0,0.27837467]
[1744275980749,0.257931,81417.0,81415.0,0.01454085]
[1744275980928,0.245649,81417.0,81416.0,0.12055382]
[1744275981318,0.245643,81420.0,81416.0,0.12055382]
[1744275981522,0.245642,81419.0,81417.0,0.245646]
[1744275981719,0.245645,81418.0,81416.0,0.12055382]
[1744275982774,0.245648,81417.0,81416.0,0.12055382]
[1744275983352,0.245645,81418.0,81416.0,0.12055382]
[1744275983579,0.20863419,81479.0,81416.0,0.12055382]
[1744275983580,0.01228,81429.0,81422.0,0.012281]
[1744275983779,0.01228,81429.0,81423.0,0.12055382]
[1744275983780,0.01228,81428.0,81423.0,0.12055382]
[1744275983985,0.01228,81428.0,81424.0,0.14332]
[1744275984218,0.245618,81427.0,81424.0,0.388946]
[1744275984390,0.245609,81430.0,81427.0,0.245618]
[1744275984594,0.012279,81437.0,81428.0,0.01228]
[1744275984793,0.2490019,81439.0,81427.0,0.13283382]
[1744275984794,0.01228,81432.0,81427.0,0.13283382]
[1744275985022,0.245596,81435.0,81427.0,0.13283382]
[1744275985218,0.245603,81432.0,81428.0,0.245615]
[1744275985419,0.245603,81432.0,81429.0,0.245611]
[1744275985675,0.2367229,81439.0,81432.0,0.245601]
[1744275985676,0.245594,81435.0,81432.0,0.245601]
[1744275985892,0.245598,81434.0,81431.0,0.245606]
[1744275986051,0.245598,81434.0,81431.0,0.36615982]
[1744275986248,0.245603,81432.0,81431.0,0.12055382]
[1744275987747,0.012278,81440.0,81433.0,0.257877]
[1744275987951,0.245588,81437.0,81431.0,0.37843982]
[1744275988614,0.245591,81436.0,81433.0,0.245599]
[1744275988830,0.245597,81434.0,81432.0,0.245603]
[1744275989013,0.245595,81435.0,81432.0,0.245603]
[1744275989508,0.25787,81436.0,81433.0,0.245598]
[1744275989883,0.245591,81436.0,81433.0,0.245598]
[1744275990260,0.245595,81435.0,81432.0,0.245603]
[1744275990961,0.245597,81434.0,81432.0,0.245603]
[1744275991418,0.245595,81435.0,81432.0,0.245603]
[1744275991845,0.245595,81435.0,81433.0,0.245599]
[1744275992657,0.245595,81435.0,81432.0,0.245603]
[1744275992859,0.257871,81436.0,81433.0,0.2456]
[1744275993363,0.245595,81435.0,81432.0,0.245603]
[1744275995055,0.245592,81436.0,81433.0,0.2456]
[1744275995477,0.01442782,81435.0,81432.0,0.245603]
[1744275995614,0.01442782,81435.0,81432.0,0.245602]
[1744275995815,0.26002382,81435.0,81432.0,0.245602]
[1744275996021,0.01442782,81435.0,81434.0,0.245597]
[1744275996224,0.01442782,81435.0,81434.0,0.37842982]
[1744275996425,0.012278,81441.0,81434.0,0.26383382]
[1744275996625,0.245594,81435.0,81434.0,0.26383382]
[1744275996887,0.245591,81436.0,81434.0,0.26383382]
[1744275997092,0.26002182,81435.0,81434.0,0.14328]
[1744275997597,0.27230082,81435.0,81434.0,0.14328]
[1744275998474,0.01442782,81435.0,81434.0,0.14328]
[1744275998676,0.01442782,81435.0,81434.0,0.388877]
[1744275998902,0.01442782,81435.0,81434.0,0.14328]
[1744275999100,0.26004757,81435.0,81434.0,0.14328]
[1744275999326,0.27232657,81435.0,81434.0,0.14328]
[1744276002430,0.52047613,81435.0,81434.0,0.14328]
[1744276002641,0.012281,81424.0,81422.0,0.14328]
[1744276002841,0.257909,81424.0,81422.0,0.14328]
[1744276002999,0.01444422,81423.0,81420.0,0.245638]
[1744276003196,0.01444422,81423.0,81421.0,0.388916]
[1744276003400,0.257914,81422.0,81421.0,0.14328]
[1744276003623,0.27235606,81422.0,81421.0,0.14328]
[1744276004797,0.257947,81412.0,81411.0,0.00012757]
[1744276004999,0.27225914,81412.0,81411.0,0.00012757]
[1744276005951,0.28368005,81412.0,81411.0,0.00012757]
[1744276006584,0.29650034,81412.0,81411.0,0.00012757]
[1744276006988,0.28507943,81412.0,81411.0,0.00012757]
[1744276008383,0.68407943,81412.0,81411.0,0.00012757]
[1744276008810,1.02407943,81412.0,81411.0,0.00012757]
[1744276009011,1.07217943,81412.0,81411.0,0.00012757]
[1744276009216,1.12087943,81412.0,81411.0,0.00012757]
[1744276009547,1.25283799,81412.0,81411.0,0.00012757]
[1744276009750,1.2613911,81412.0,81411.0,0.00012757]
[1744276010059,1.28419832,81412.0,81411.0,0.00012757]